fUSD/lending_fUSD_20240601
["ID","MTS","AMOUNT","RATE_DAILY","PERIOD"]
[328358308,1717232953927,-234.14,0.00013166,2]
[328358309,1717232953951,-234.14,0.00013201,2]
[328358310,1717232953974,-234.14,0.00013236,2]
[328358311,1717232953998,-234.14,0.0001327,2]
[328358312,1717232954018,-477.64002422,0.000133,2]
[328358313,1717232954039,-380.70037141,0.00013383,2]
[328358314,1717232954060,-252.49288459,0.00013528,2]
[328358315,1717232954080,-643.40902,0.0001355,2]
[328358316,1717232954100,-229.26348365,0.0001357,2]
[328358327,1717233032091,-429.14560452,0.00013292,2]
[328358328,1717233032101,-250.0,0.00013293,2]
[328358329,1717233032110,-474.71588288,0.00013295,2]
[328358330,1717233032121,-155.000001,0.00013664,2]
[328358331,1717233032135,-3051.3055662,0.00013664,2]
[328358332,1717233032145,-1382.70872343,0.00013664,2]
[328358333,1717233032155,-344.9320909,0.00013664,2]
[328358334,1717233032165,-536.52210812,0.00013664,2]
[328358335,1717233032176,-155.39761068,0.00013664,2]
[328358336,1717233032185,-626.63948033,0.00013664,2]
[328358337,1717233032197,-2189.24448954,0.00013664,2]
[328358338,1717233032213,-652.78936846,0.00013665,2]
[328358339,1717233032300,-2234.93115445,0.00013665,2]
[328358340,1717233032309,-477.98708,0.00013666,2]
[328358341,1717233032319,-247.9816818,0.00013667,2]
[328358342,1717233032328,-167.69,0.00013699,2]
[328358343,1717233032338,-1205.38,0.00013699,2]
[328358344,1717233032347,-2166.6333,0.00013799,2]
[328358345,1717233032356,-1000.0,0.00013897,2]
[328358346,1717233032365,-154.15186399,0.00013898,2]
[328358347,1717233032375,-601.73217034,0.00013898,2]
[328358348,1717233032384,-326.27376454,0.00013898,2]
[328358349,1717233032547,-25132.112,0.00013899,2]
[328358350,1717233032557,-152.4174517,0.000139,2]
[328358351,1717233032566,-181.42237488,0.000139,2]
[328358352,1717233032576,-186.97880195,0.000139,2]
[328358353,1717233032585,-175.52586237,0.000139,2]
[328358354,1717233032594,-4114.19795788,0.00013939,2]
[328358355,1717233032604,-2002.3178178,0.00013939,2]
[328358356,1717233032613,-4566.14331898,0.00013939,2]
[328358357,1717233032624,-93.43450092,0.00013939,2]
[328358358,1717233032634,-234.53919679,0.00013939,2]
[328358359,1717233032643,-230.53609246,0.00013987,2]
[328358360,1717233032652,-51.17020981,0.0001399,2]
[328358361,1717233032664,-100.49979019,0.0001399,2]
[328358362,1717233032673,-151.67,0.0001399,2]
[328358363,1717233032682,-151.67,0.0001399,2]
[328358364,1717233032691,-151.67,0.0001399,2]
[328358365,1717233032700,-74.59246943,0.0001399,2]
[328358366,1717233032712,-77.07753057,0.0001399,2]
[328358367,1717233032721,-151.67,0.0001399,2]
[328358368,1717233032731,-120.25246943,0.0001399,2]
[328358369,1717233032741,-31.41753057,0.0001399,2]
[328358370,1717233032750,-151.67,0.0001399,2]
[328358371,1717233032759,-151.67,0.0001399,2]
[328358372,1717233032769,-151.67,0.0001399,2]
[328358373,1717233032778,-151.67,0.0001399,2]
[328358374,1717233032787,-151.67,0.0001399,2]
[328358375,1717233032797,-151.67,0.0001399,2]
[328358376,1717233032806,-151.67,0.0001399,2]
[328358377,1717233032815,-151.67,0.0001399,2]
[328358378,1717233032824,-151.67,0.0001399,2]
[328358379,1717233032833,-151.67,0.0001399,2]
[328358380,1717233032842,-151.67,0.0001399,2]
[328358381,1717233032851,-151.67,0.0001399,2]
[328358382,1717233032860,-151.67,0.0001399,2]
[328358383,1717233032869,-151.67,0.0001399,2]
[328358384,1717233032878,-151.67,0.0001399,2]
[328358385,1717233032887,-151.67,0.0001399,2]
[328358386,1717233032896,-151.67,0.0001399,2]
[328358387,1717233032906,-151.67,0.0001399,2]
[328358388,1717233032915,-151.67,0.0001399,2]
[328358389,1717233032924,-151.67,0.0001399,2]
[328358390,1717233032934,-67.60104558,0.0001399,2]
[328358391,1717233032945,-84.06895442,0.0001399,2]
[328358392,1717233032954,-151.67,0.0001399,2]
[328358393,1717233032963,-151.67,0.0001399,2]
[328358394,1717233032974,-151.67,0.0001399,2]
[328358395,1717233032983,-151.67,0.0001399,2]
[328358396,1717233032992,-151.67,0.0001399,2]
[328358397,1717233033001,-257.7000709,0.00013995,2]
[328358398,1717233033010,-223.27147279,0.00013995,2]
[328358399,1717233033019,-314.20485818,0.00013995,2]
[328358400,1717233033029,-337.22714371,0.00013995,2]
[328358401,1717233033040,-350.03451055,0.00013995,2]
[328358402,1717233033049,-162.2448794,0.00013995,2]
[328358403,1717233033059,-166.02579947,0.00013995,2]
[328358404,1717233033068,-1604.60035557,0.00013995,2]
[328358405,1717233033077,-237.45016494,0.00013995,2]
[328358406,1717233033087,-1247.36037009,0.00013995,2]
[328358407,1717233033096,-988.1858379,0.00013996,2]
[328358408,1717233033106,-2220.76853723,0.00013997,2]
[328358409,1717233033118,-3185.94146673,0.00013997,2]
[328358410,1717233033507,-955.19070376,0.00013997,2]
[328358411,1717233033519,-792.5901174,0.00013997,2]
[328358412,1717233033530,-8958.03425302,0.00013997,2]
[328358414,1717233038840,-179.72760432,0.00013898,2]
[328358415,1717233038849,-179.72760432,0.00013945,2]
[328358416,1717233038858,-28235.89292755,0.00013997,2]
[328358417,1717233038870,-38616.59706,0.00013997,2]
[328358418,1717233038881,-32517.57440624,0.00013997,2]
[328358419,1717233038893,-40188.70718728,0.00013997,2]
[328358420,1717233038979,-275.99046704,0.00013997,2]
[328358421,1717233038990,-855.02193264,0.00013997,2]
[328358422,1717233039005,-492.96693759,0.00013997,2]
[328358423,1717233039016,-704.35927445,0.00013997,2]
[328358424,1717233039027,-5862.51986911,0.00013997,2]
[328358425,1717233039149,-297.3737717,0.00013997,2]
[328358426,1717233039284,-30657.20328492,0.00013997,2]
[328358427,1717233039295,-290142.37252731,0.00013997,2]
[328358546,1717233040876,-179.72760432,0.00013992,2]
[328358547,1717233040886,-1346.68214798,0.00013997,2]
[328358548,1717233040897,-570.03999999,0.00013997,2]
[328358549,1717233040908,-8035.40333089,0.00013997,2]
[328358550,1717233040919,-404.24487,0.00013997,2]
[328358551,1717233040930,-255.471,0.00013997,2]
[328358552,1717233040941,-3080.1474387,0.00013997,2]
[328358553,1717233041856,-1458.18429658,0.00013997,2]
[328358554,1717233041869,-1348.37030117,0.00013997,2]
[328358555,1717233041889,-5141.88651712,0.00013997,2]
[328358556,1717233041901,-822.89320449,0.00013997,2]
[328358557,1717233041920,-398.36845872,0.00013997,2]
[328358558,1717233041932,-1143.78368206,0.00013997,2]
[328358570,1717233043374,-42314.89302307,0.00013997,2]
[328358571,1717233043389,-730.07140233,0.00013997,2]
[328358572,1717233043401,-652.62529538,0.00013997,2]
[328358573,1717233043433,-21637.46349107,0.00013997,2]
[328358574,1717233043448,-181.12052295,0.00013997,2]
[328358575,1717233043458,-325.77391289,0.00013998,2]
[328358576,1717233043469,-152.59054515,0.00013999,2]
[328358577,1717233043479,-12480.66990709,0.00014,2]
[328358578,1717233043535,-6687.36326085,0.00014,2]
[328358579,1717233043547,-3692.18378794,0.00014,2]
[328358580,1717233043560,-3181.32309587,0.00014,2]
[328358596,1717233048453,-497.9636,0.00013997,2]
[328358597,1717233048463,-3305.74879745,0.00014,2]
[328358598,1717233048479,-7535.70167586,0.00014,2]
[328358599,1717233048591,-18127.78810392,0.00014,2]
[328358600,1717233048852,-274.68725396,0.00014,2]
[328358602,1717233104163,1252.06,0.00027068,30]
[328358603,1717233104656,1252.06,0.00030721,30]
[328358604,1717233226944,-268.8327842,0.00013556,2]
[328358605,1717233226968,-155.0,0.00013557,2]
[328358606,1717233226989,-155.0,0.00013557,2]
[328358607,1717233227011,-155.0,0.00013558,2]
[328358608,1717233227032,-657.97669336,0.00013558,2]
[328358609,1717233227053,-234.75464597,0.00013559,2]
[328358610,1717233227074,-201.3563572,0.0001356,2]
[328358611,1717233227097,-2367.15501921,0.0001356,2]
[328358612,1717233227119,-168.24995621,0.00013561,2]
[328358613,1717233227145,-553.67454385,0.00013564,2]
[328358614,1717233245033,-344.38523413,0.00013564,2]
[328358615,1717233245055,-7549.6612137,0.00013565,2]
[328358616,1717233245077,-2105.95355217,0.00013566,2]
[328358617,1717233252463,-10000.0,0.00013566,2]
[328358618,1717233252836,-3465.10158084,0.00013566,2]
[328358619,1717233252870,-6534.89841916,0.00013568,2]
[328358620,1717233253179,-177.47549143,0.00013568,2]
[328358621,1717233253202,-7288.10313465,0.0001357,2]
[328358622,1717233253223,-201.81559418,0.00013859,2]
[328358623,1717233253245,-2332.60577974,0.00013897,2]
[328358624,1717233253519,-10000.0,0.00013897,2]
[328358625,1717233253883,-4835.16362026,0.00013897,2]
[328358626,1717233253909,-1000.0,0.000139,2]
[328358627,1717233253930,-874.6236,0.000139,2]
[328358628,1717233253952,-1334.8785452,0.000139,2]
[328358629,1717233253977,-526.5156491,0.000139,2]
[328358630,1717233254000,-152.41745168,0.00013939,2]
[328358631,1717233254024,-157.30591297,0.00013998,2]
[328358632,1717233254046,-1119.09522079,0.00013998,2]
[328358633,1717233255378,-1120.14402575,0.00013998,2]
[328358634,1717233255399,-818.92777564,0.00013998,2]
[328358635,1717233255422,-156.62532574,0.00013998,2]
[328358636,1717233255443,-155.96284333,0.00013998,2]
[328358637,1717233255463,-206.87081495,0.00013998,2]
[328358638,1717233255484,-323.29204433,0.00013998,2]
[328358639,1717233255508,-159.44649709,0.00013998,2]
[328358640,1717233255531,-157.35021688,0.00013998,2]
[328358641,1717233255552,-160.19817682,0.00013998,2]
[328358642,1717233255573,-162.14399284,0.00013998,2]
[328358643,1717233255596,-205.03192926,0.00013998,2]
[328358644,1717233255622,-267.61741212,0.00013998,2]
[328358645,1717233255645,-168.67834765,0.00013998,2]
[328358646,1717233255668,-179.28826561,0.00013998,2]
[328358647,1717233255694,-2572.72644681,0.00013998,2]
[328358648,1717233255717,-1273.20131825,0.00013998,2]
[328358649,1717233255741,-155.78683863,0.00013998,2]
[328358650,1717233255763,-782.34085719,0.00013998,2]
[328358651,1717233255784,-156.02706529,0.00013998,2]
[328358652,1717233255805,-156.28683818,0.00013998,2]
[328358653,1717233255827,-305.41449521,0.00013998,2]
[328358654,1717233255848,-193.03417988,0.00013998,2]
[328358655,1717233255870,-163.60429255,0.00013998,2]
[328358656,1717233255900,-656.95508085,0.00013998,2]
[328358657,1717233255922,-2183.05009866,0.00013998,2]
[328358658,1717233255944,-155.69348556,0.00013998,2]
[328358659,1717233255965,-4281.53119452,0.00013998,2]
[328358660,1717233255986,-789.86639451,0.00013998,2]
[328358661,1717233256010,-328.44902515,0.00013998,2]
[328358662,1717233256032,-155.38728852,0.00013998,2]
[328358663,1717233256055,-305.53903369,0.00013998,2]
[328358664,1717233256079,-280.63919406,0.00013998,2]
[328358665,1717233256104,-525.01264179,0.00013998,2]
[328358666,1717233256129,-337.87656269,0.00013998,2]
[328358667,1717233256204,-3874.7614506,0.00013998,2]
[328358668,1717233256226,-155.0,0.00013998,2]
[328358669,1717233256248,-662.63064287,0.00013998,2]
[328358670,1717233256269,-5307.60790653,0.00013998,2]
[328358671,1717233257717,-149.14924385,0.00013998,2]
[328358672,1717233257738,-242.14432747,0.00013998,2]
[328358673,1717233257760,-1064.33887229,0.00013998,2]
[328358674,1717233257782,-209.54233722,0.00013998,2]
[328358675,1717233257809,-206.79884839,0.00013998,2]
[328358676,1717233257832,-155.26323273,0.00013998,2]
[328358677,1717233257855,-195.45444351,0.00013998,2]
[328358678,1717233257876,-685.99590775,0.00013998,2]
[328358679,1717233257898,-364.17738736,0.00013998,2]
[328358680,1717233257918,-440.02758746,0.00013998,2]
[328358681,1717233257940,-155.37842338,0.00013998,2]
[328358682,1717233257962,-156.74199206,0.00013998,2]
[328358683,1717233257983,-327.5137528,0.00013998,2]
[328358684,1717233258004,-196.47169359,0.00013998,2]
[328358685,1717233258026,-1907.40185445,0.00013998,2]
[328358686,1717233258048,-597.54973271,0.00013998,2]
[328358687,1717233258069,-395.14984728,0.00013998,2]
[328358688,1717233258090,-255.20118883,0.00013998,2]
[328358689,1717233258111,-168.1654442,0.00013998,2]
[328358690,1717233258131,-156.40044709,0.00013998,2]
[328358691,1717233258154,-288.48717338,0.00013998,2]
[328358692,1717233258176,-247.76120518,0.00013998,2]
[328358693,1717233258196,-428.36094114,0.00013999,2]
[328358694,1717233258220,-1006.52411588,0.00014,2]
[328358695,1717233258288,-10000.0,0.00014,2]
[328358696,1717233259854,-3106.38521326,0.000139,2]
[328358697,1717233259879,-6893.61478674,0.00014,2]
[328358698,1717233260754,-10000.0,0.00014,2]
[328358699,1717233520953,250.0,0.00034958,30]
[328358700,1717233544060,500.0,0.00034958,30]
[328358701,1717233567273,244.34,0.00033151,120]
[328358702,1717233651379,1095.55,0.00027068,30]
[328358703,1717233651753,1095.55,0.00030721,30]
[328358704,1717233778963,200.0,0.00034958,30]
[328358705,1717234155110,-155.0,0.00010112,2]
[328358706,1717234155129,-2333.31828049,0.00010112,2]
[328358707,1717234155149,-418.13180826,0.00010113,2]
[328358708,1717234160279,-7529.62685189,0.00010111,2]
[328358709,1717234160299,-3066.76266132,0.00010111,2]
[328358710,1717234160320,-87.80847031,0.00010113,2]
[328358711,1717234160340,-4753.56216164,0.00010114,2]
[328358712,1717234160361,-1181.7656568,0.00010115,2]
[328358713,1717234160383,-941.1264853,0.00010116,2]
[328358714,1717234160404,-150.0,0.00010123,2]
[328358715,1717234160427,-150.0,0.00010123,2]
[328358716,1717234160447,-150.0,0.00010123,2]
[328358717,1717234160469,-1178.36055546,0.00010173,2]
[328358718,1717234160492,-208.00169108,0.00011103,2]
[328358719,1717234172121,-503.75253649,0.00011103,2]
[328358720,1717234211032,958.6,0.00027068,30]
[328358721,1717234211367,958.6,0.00030721,30]
[328358733,1717234232303,-2.62577243,0.00011103,2]
[328358734,1717234232314,-150.0,0.0001252,2]
[328358735,1717234232323,-722.89694565,0.00012691,2]
[328358736,1717234232335,-437.8405502,0.00012691,2]
[328358737,1717234232346,-791.63952452,0.00012691,2]
[328358738,1717234232358,-718.53297963,0.00012691,2]
[328358739,1717234232368,-323.5,0.00012696,2]
[328358740,1717234232543,-200.0,0.00012696,2]
[328358741,1717234232553,-57.38786487,0.00012767,2]
[328358742,1717234232564,-192.61213513,0.00012767,2]
[328358743,1717234232574,-77.65373714,0.00012825,2]
[328358744,1717234232585,-869.205,0.00012825,2]
[328358745,1717234232596,-276.02740189,0.00012825,2]
[328358746,1717234232610,-61.09778831,0.00012825,2]
[328358747,1717234232619,-23890.0,0.00012835,2]
[328358748,1717234232629,-9999.99,0.00012835,2]
[328358749,1717234232639,-184.11,0.00012835,2]
[328358750,1717234232648,-3001.27,0.00012873,2]
[328358751,1717234232657,-250.0,0.00012925,2]
[328358752,1717234232667,-242.22,0.00012925,2]
[328358753,1717234232676,-154.9,0.00012925,2]
[328358754,1717234232687,-1340.56,0.00012925,2]
[328358755,1717234232697,-1000.0,0.00013009,2]
[328358756,1717234232707,-553.27,0.00013009,2]
[328358757,1717234232716,-17228.62,0.00013009,2]
[328358758,1717234232726,-2460.9,0.00013056,2]
[328358759,1717234232735,-714.38,0.00013367,2]
[328358760,1717234232744,-150.99,0.00013556,2]
[328358761,1717234232754,-167.69,0.00013699,2]
[328358762,1717234232764,-745.27,0.00013699,2]
[328358763,1717234232773,-9467.33959294,0.000138,2]
[328358764,1717234232785,-5127.91830706,0.000138,2]
[328358765,1717234232794,-3239.534,0.00013898,2]
[328358766,1717234232803,-150.99,0.000139,2]
[328358767,1717234232812,-499.99,0.000139,2]
[328358768,1717234232822,-800.8829,0.000139,2]
[328358769,1717234232831,-183.92026191,0.000139,2]
[328358770,1717234232840,-175.52586235,0.000139,2]
[328358771,1717234232850,-3771.34812813,0.000139,2]
[328358772,1717234232859,-519.36564656,0.000139,2]
[328358773,1717234232868,-889.91903014,0.000139,2]
[328358774,1717234232877,-1309.09328325,0.000139,2]
[328358775,1717234232886,-305.90711766,0.000139,2]
[328358776,1717234232898,-20.06503912,0.000139,2]
[328358777,1717234232907,-1165.02,0.00013918,2]
[328358778,1717234232916,-9999.99,0.00013918,2]
[328358779,1717234232925,-5379.74,0.00013918,2]
[328358780,1717234232934,-21665.313,0.0001399,2]
[328358781,1717234232943,-151.73,0.0001399,2]
[328358782,1717234232955,-151.73,0.0001399,2]
[328358783,1717234232964,-1247.44260578,0.00013997,2]
[328358784,1717234232973,-155.74279391,0.00013997,2]
[328358785,1717234232982,-552.46368907,0.00013997,2]
[328358786,1717234232992,-170.69399901,0.00013997,2]
[328358787,1717234233001,-505.76121207,0.00013997,2]
[328358788,1717234233011,-7528.26513526,0.00013997,2]
[328358789,1717234233020,-482.13668215,0.00013997,2]
[328358790,1717234233029,-410.5918966,0.00013998,2]
[328358791,1717234233038,-2549.25537419,0.00013998,2]
[328358792,1717234233048,-155.0,0.00013998,2]
[328358793,1717234233057,-209.1055224,0.00013998,2]
[328358794,1717234233066,-1843.19768624,0.00013998,2]
[328358795,1717234233077,-369.95948262,0.00013998,2]
[328358796,1717234233088,-467.5,0.00013998,2]
[328358797,1717234233100,-1146.95174,0.00013998,2]
[328358798,1717234233111,-397.82076205,0.00013998,2]
[328358799,1717234233122,-211.47637582,0.00013998,2]
[328358800,1717234233131,-544.85678975,0.00013998,2]
[328358801,1717234233140,-268.78049174,0.00013998,2]
[328358802,1717234233149,-282.43739626,0.00013998,2]
[328358803,1717234233158,-205.30156829,0.00013998,2]
[328358804,1717234233167,-155.0,0.00013998,2]
[328358805,1717234233176,-155.0,0.00013998,2]
[328358806,1717234233185,-1388.97892771,0.00013998,2]
[328358807,1717234233194,-1267.79013484,0.00013998,2]
[328358808,1717234233206,-3300.0,0.00013998,2]
[328358809,1717234233217,-1329.28402773,0.00013998,2]
[328358810,1717234233228,-368.36047548,0.00013998,2]
[328358812,1717234238256,-155.0,0.00011103,2]
[328358813,1717234238266,-610.5995558,0.000139,2]
[328358814,1717234238546,-1460.3239197,0.000139,2]
[328358815,1717234238556,-188.14170597,0.0001399,2]
[328358816,1717234238566,-188.14170597,0.0001399,2]
[328358817,1717234238575,-188.14170597,0.0001399,2]
[328358818,1717234238585,-4278.20905101,0.00013998,2]
[328358819,1717234238595,-1102.25357597,0.00013999,2]
[328358829,1717234241889,-1039.44970394,0.00013999,2]
[328358831,1717234243309,-5985.17143349,0.00013999,2]
[328358832,1717234243556,-4074.12,0.00013999,2]
[328358833,1717234243702,-3476.21356124,0.00013999,2]
[328358834,1717234243744,-2288.78070851,0.00013999,2]
[328358836,1717234246727,-0.06135481,0.00013999,2]
[328358837,1717234248583,-1346.7,0.00013999,2]
[328358838,1717234248595,-324.95834368,0.00013999,2]
[328358839,1717234248610,-2039.39676362,0.00013999,2]
[328358840,1717234248620,-935.0935,0.00013999,2]
[328358841,1717234248631,-856.20926424,0.00013999,2]
[328358842,1717234248647,-1771.57523962,0.00013999,2]
[328358843,1717234248659,-1685.47391358,0.00013999,2]
[328358847,1717234639581,1999.999999,0.00034958,120]
[328358850,1717234750016,838.77,0.00027068,30]
[328358851,1717234750394,838.77,0.00030721,30]
[328358852,1717234931160,203.61,0.00033151,120]
[328358873,1717235132185,-155.0,0.00012594,2]
[328358874,1717235132207,-201.3568412,0.00012595,2]
[328358950,1717235287024,733.92,0.00027068,30]
[328358951,1717235287341,733.92,0.00030721,30]
[328358952,1717235345109,-156.44858283,0.00011389,2]
[328358953,1717235345132,-2756.78891618,0.0001139,2]
[328358954,1717235345158,-613.61344114,0.00011391,2]
[328358972,1717235431496,-73.15655886,0.00011391,2]
[328358974,1717235431507,-174.79546801,0.00012491,2]
[328358975,1717235431516,-230.24359143,0.00012589,2]
[328358976,1717235431528,-625.14749894,0.00012589,2]
[328358977,1717235431537,-1247.44260578,0.0001259,2]
[328358978,1717235431547,-3066.76266132,0.00012591,2]
[328358979,1717235431556,-155.69003604,0.00012598,2]
[328358980,1717235431566,-45.9591671,0.00013166,2]
[328358981,1717235431586,-118.6408329,0.00013166,2]
[328358982,1717235431595,-164.6,0.00013303,2]
[328358983,1717235431605,-203.46195713,0.00013404,2]
[328358984,1717235431616,-46.53804287,0.00013404,2]
[328358985,1717235431625,-164.6,0.0001344,2]
[328358986,1717235431635,-164.6,0.00013577,2]
[328358987,1717235431644,-150.99,0.00013577,2]
[328358988,1717235431654,-313.79527642,0.00013655,2]
[328358989,1717235431666,-372.97472358,0.00013655,2]
[328358990,1717235431675,-157.17027625,0.00013655,2]
[328358991,1717235431706,-342.81972375,0.00013655,2]
[328358992,1717235431716,-150.0,0.00013669,2]
[328358993,1717235431725,-150.0,0.00013669,2]
[328358994,1717235431734,-201.14,0.00013669,2]
[328358995,1717235431744,-1000.0,0.0001367,2]
[328358996,1717235431754,-150.0,0.00013671,2]
[328358997,1717235431763,-372.63,0.00013699,2]
[328358998,1717235431773,-6703.09554143,0.00013699,2]
[328358999,1717235431784,-698.70928657,0.00013699,2]
[328359000,1717235431795,-4131.295172,0.00013699,2]
[328359001,1717235431805,-154.67065136,0.000137,2]
[328359002,1717235431816,-2112.18078932,0.000137,2]
[328359003,1717235431861,-4903.37835932,0.000137,2]
[328359004,1717235431870,-1717.4198,0.000137,2]
[328359005,1717235431880,-146.39141067,0.00013715,2]
[328359070,1717235437543,-18.20858933,0.00013715,2]
[328359071,1717235437554,-156.32664826,0.00013798,2]
[328359072,1717235437564,-372.15163135,0.00013798,2]
[328359073,1717235437574,-530.45664041,0.00013798,2]
[328359074,1717235437586,-734.009858,0.00013798,2]
[328359075,1717235437600,-1164.90527486,0.00013798,2]
[328359076,1717235437610,-940.52414264,0.00013798,2]
[328359077,1717235437619,-155.0,0.00013799,2]
[328359078,1717235437630,-7529.62685189,0.00013799,2]
[328359079,1717235437640,-23877.82044271,0.000138,2]
[328359080,1717235437652,-1357.92755533,0.000138,2]
[328359081,1717235437664,-1663.66909841,0.000138,2]
[328359082,1717235437676,-953.23988846,0.000138,2]
[328359083,1717235437692,-1076.84728964,0.000138,2]
[328359085,1717235437927,-44722.64434859,0.000138,2]
[328359086,1717235437939,-255.06953445,0.000138,2]
[328359089,1717235440210,-26092.78184241,0.000138,2]
[328359090,1717235440220,-2106.39,0.000138,2]
[328359091,1717235440230,-2500.0,0.000138,2]
[328359092,1717235440239,-237.40951865,0.000138,2]
[328359093,1717235440248,-325.9412669,0.000138,2]
[328359094,1717235440258,-176.41,0.00013842,2]
[328359095,1717235440267,-164.6,0.00013852,2]
[328359096,1717235440276,-497.8815,0.00013898,2]
[328359097,1717235440285,-154.7709662,0.000139,2]
[328359098,1717235440295,-193.8469,0.000139,2]
[328359099,1717235440304,-1000.0,0.000139,2]
[328359100,1717235440313,-6754.5911,0.000139,2]
[328359101,1717235440323,-176.5648,0.000139,2]
[328359102,1717235440332,-500.0,0.000139,2]
[328359103,1717235440341,-39260.8446,0.000139,2]
[328359104,1717235440351,-1942.11604634,0.000139,2]
[328359105,1717235440367,-1335.0,0.000139,2]
[328359106,1717235441483,-1047.2,0.000139,2]
[328359107,1717235441494,-1501.75725782,0.000139,2]
[328359108,1717235441505,-2750.47112213,0.000139,2]
[328359165,1717235442729,-292.5,0.000139,2]
[328359166,1717235442741,-3543.4581044,0.000139,2]
[328359167,1717235442752,-3240.84160407,0.000139,2]
[328359168,1717235442764,-5829.47039749,0.000139,2]
[328359169,1717235442776,-4961.32695949,0.000139,2]
[328359170,1717235442790,-733.0753,0.000139,2]
[328359171,1717235442814,-758.19771398,0.000139,2]
[328359172,1717235442825,-1482.56613254,0.000139,2]
[328359174,1717235442856,-3337.5,0.000139,2]
[328359175,1717235442872,-500.0,0.000139,2]
[328359176,1717235443128,-1068.30517577,0.000139,2]
[328359177,1717235443141,-4039.83402011,0.000139,2]
[328359178,1717235443152,-5977.34102318,0.000139,2]
[328359179,1717235443164,-500.0,0.000139,2]
[328359186,1717235443285,-39.59520463,0.000139,2]
[328359187,1717235443336,-0.99392591,0.000139,2]
[328359193,1717235445511,-3219.5463672,0.000139,2]
[328359194,1717235447721,-646.6655715,0.00013899,2]
[328359195,1717235447731,-10956.07722211,0.00013899,2]
[328359196,1717235447740,-1689.91036341,0.000139,2]
[328359197,1717235447753,-1899.15,0.000139,2]
[328359198,1717235447764,-5956.52448997,0.000139,2]
[328359199,1717235447856,-1604.0647606,0.000139,2]
[328359200,1717235447867,-636.93534602,0.000139,2]
[328359207,1717235829216,685.07,0.00027068,30]
[328359208,1717235829546,685.07,0.00030721,30]
[328359213,1717236092946,169.67,0.00033151,120]
[328359214,1717236249509,2000.0,0.00034952,30]
[328359217,1717236519916,599.43,0.00027068,30]
[328359218,1717236520297,599.43,0.00030721,30]
[328359219,1717236549177,-209.15588465,0.00010768,2]
[328359220,1717236549202,-536.91822658,0.00010768,2]
[328359221,1717236549224,-150.0,0.00010768,2]
[328359222,1717236549248,-489.81743088,0.00010769,2]
[328359223,1717236549276,-338.08157576,0.00010769,2]
[328359224,1717236549304,-364.96719133,0.00010769,2]
[328359225,1717236549332,-10524.19988808,0.00010769,2]
[328359226,1717236549359,-155.0,0.0001077,2]
[328359227,1717236549384,-263.45707997,0.0001077,2]
[328359228,1717236549411,-5285.56169332,0.0001077,2]
[328359229,1717236549438,-4285.51253231,0.00010771,2]
[328359230,1717236549463,-642.93,0.00010777,2]
[328359231,1717236549483,-534.80668639,0.00011168,2]
[328359232,1717236549505,-13214.28511537,0.00011391,2]
[328359233,1717236549525,-180.31160513,0.00011391,2]
[328359234,1717236549546,-290.00295327,0.00011391,2]
[328359235,1717236549567,-2437.80059685,0.00011391,2]
[328359236,1717236552106,-207.88913465,0.00010767,2]
[328359237,1717236552127,-493.05524719,0.00011391,2]
[328359238,1717236552157,-275.99127247,0.00011391,2]
[328359239,1717236562119,-52.19288349,0.00011391,2]
[328359240,1717236562142,-184.19,0.00011391,2]
[328359241,1717236562167,-752.47,0.00011391,2]
[328359242,1717236562190,-2606.040207,0.00012,2]
[328359243,1717236562215,-489.50491916,0.00012,2]
[328359244,1717236562240,-499.99,0.00012,2]
[328359245,1717236562264,-678.09980023,0.00012,2]
[328359274,1717236637743,-100.39019977,0.00012,2]
[328359275,1717236637753,-429.97562966,0.00012604,2]
[328359276,1717236637808,-1395.6729447,0.00012604,2]
[328359291,1717236643049,-3490.49945104,0.000119,2]
[328359292,1717236643062,-9683.87142564,0.00012604,2]
[328359293,1717236643071,-1842.15,0.00012651,2]